[Event "FIDE U16 Olympiad_boards_81-124"]
[Site "Eindhoven, Netherlands"]
[Date "2023.08.14"]
[Round "3.41"]
[White "Sacco, Isaac"]
[Black "Medina, Joshua"]
[Result "0-1"]
[TimeControl "45min+10sec"]
[WhiteElo "1272"]
[BlackElo "1644"]

1. e4 {[%clk 00:45:18]} {[%emt 00:00:01]} c5 {[%clk 00:41:34]} {[%emt
00:03:47]} 2. Nf3 {[%clk 00:45:26]} {[%emt 00:00:02]} Nc6 {[%clk 00:41:42]}
{[%emt 00:00:02]} 3. d4 {[%clk 00:45:32]} {[%emt 00:00:04]} cxd4 {[%clk
00:41:49]} {[%emt 00:00:03]} 4. Nxd4 {[%clk 00:45:40]} {[%emt 00:00:02]} Nf6
{[%clk 00:41:57]} {[%emt 00:00:02]} 5. Nc3 {[%clk 00:45:47]} {[%emt 00:00:04]}
e5 {[%clk 00:41:58]} {[%emt 00:00:08]} 6. Nf3 {[%clk 00:45:36]} {[%emt
00:00:20]} h6 {[%clk 00:40:58]} {[%emt 00:01:11]} 7. Bc4 {[%clk 00:44:47]}
{[%emt 00:00:58]} Bc5 {[%clk 00:40:39]} {[%emt 00:00:30]} 8. O-O {[%clk
00:43:33]} {[%emt 00:01:24]} d6 {[%clk 00:40:44]} {[%emt 00:00:05]} 9. h3
{[%clk 00:42:27]} {[%emt 00:01:15]} O-O {[%clk 00:38:39]} {[%emt 00:02:16]} 10.
Re1 {[%clk 00:42:07]} {[%emt 00:00:29]} a6 {[%clk 00:36:09]} {[%emt 00:02:41]}
11. Be3 {[%clk 00:41:17]} {[%emt 00:00:58]} Bb4 {[%clk 00:35:05]} {[%emt
00:01:15]} 12. Qd3 {[%clk 00:40:29]} {[%emt 00:00:44]} Be6 {[%clk 00:29:13]}
{[%emt 00:06:17]} 13. Red1 {[%clk 00:36:57]} {[%emt 00:03:39]} Bxc3 {[%clk
00:27:44]} {[%emt 00:01:41]} 14. bxc3 {[%clk 00:34:51]} {[%emt 00:02:15]} Bxc4
{[%clk 00:27:41]} {[%emt 00:00:14]} 15. Qxc4 {[%clk 00:34:57]} {[%emt
00:00:03]} Qc7 {[%clk 00:27:37]} {[%emt 00:00:14]} 16. Rab1 {[%clk 00:32:12]}
{[%emt 00:02:54]} b5 {[%clk 00:26:46]} {[%emt 00:01:02]} 17. Qd3 {[%clk
00:31:44]} {[%emt 00:00:28]} d5 {[%clk 00:22:40]} {[%emt 00:04:26]} 18. Nd2
{[%clk 00:26:54]} {[%emt 00:04:57]} Rfd8 {[%clk 00:19:28]} {[%emt 00:03:25]} 19.
exd5 {[%clk 00:21:50]} {[%emt 00:05:14]} Nxd5 {[%clk 00:19:23]} {[%emt
00:00:16]} 20. Bc5 {[%clk 00:19:37]} {[%emt 00:02:22]} Na5 {[%clk 00:17:37]}
{[%emt 00:01:56]} 21. Ne4 {[%clk 00:17:23]} {[%emt 00:02:22]} f5 {[%clk
00:14:51]} {[%emt 00:02:59]} 22. Bd6 {[%clk 00:13:14]} {[%emt 00:04:19]} fxe4
{[%clk 00:14:00]} {[%emt 00:01:01]} 23. Bxc7 {[%clk 00:12:07]} {[%emt
00:01:17]} exd3 {[%clk 00:13:56]} {[%emt 00:00:14]} 24. Bxd8 {[%clk 00:09:26]}
{[%emt 00:02:51]} dxc2 {[%clk 00:09:07]} {[%emt 00:04:59]} 25. Bxa5 {[%clk
00:08:25]} {[%emt 00:01:11]} b4 {[%clk 00:07:09]} {[%emt 00:02:09]} 26. Rdc1
{[%clk 00:06:01]} {[%emt 00:02:33]} cxb1=Q 27. Rxb1 {[%clk 00:06:09]} bxc3
{[%clk 00:06:28]} {[%emt 00:00:26]} 28. Rc1 {[%clk 00:05:31]} {[%emt 00:00:48]}
Rc8 {[%clk 00:06:30]} {[%emt 00:00:08]} 29. Kf1 {[%clk 00:05:21]} {[%emt
00:00:19]} Kf7 {[%clk 00:05:11]} {[%emt 00:01:30]} 30. g3 {[%clk 00:04:38]}
{[%emt 00:00:53]} Ke7 {[%clk 00:04:42]} {[%emt 00:00:39]} 31. Ke2 {[%clk
00:04:35]} {[%emt 00:00:13]} Rc5 {[%clk 00:04:28]} {[%emt 00:00:25]} 32. Bxc3
{[%clk 00:02:55]} {[%emt 00:01:49]} Rxc3 {[%clk 00:04:10]} {[%emt 00:00:28]} 33.
Rb1 {[%clk 00:01:45]} {[%emt 00:01:21]} Rc2+ {[%clk 00:03:58]} {[%emt
00:00:22]} 34. Kf3 {[%clk 00:01:49]} {[%emt 00:00:05]} Rxa2 {[%clk 00:04:03]}
{[%emt 00:00:06]} 35. Rb7+ {[%clk 00:01:41]} {[%emt 00:00:18]} Kf6 {[%clk
00:04:06]} {[%emt 00:00:06]} 36. Ke4 {[%clk 00:01:38]} {[%emt 00:00:12]} Nc3+
{[%clk 00:03:00]} {[%emt 00:01:18]} 37. Kd3 {[%clk 00:00:33]} {[%emt 00:01:15]}
Nd1 {[%clk 00:02:25]} {[%emt 00:00:46]} 38. Rb6+ {[%clk 00:00:21]} {[%emt
00:00:23]} Kf7 {[%clk 00:02:27]} {[%emt 00:00:08]} 39. Rb7+ {[%clk 00:00:28]}
{[%emt 00:00:03]} Kg6 {[%clk 00:02:23]} {[%emt 00:00:14]} 40. Rb6+ {[%clk
00:00:35]} {[%emt 00:00:03]} Kh7 {[%clk 00:02:14]} {[%emt 00:00:18]} 0-1

[Event "FIDE U16 Olympiad_boards_81-124"]
[Site "Eindhoven, Netherlands"]
[Date "2023.08.14"]
[Round "3.42"]
[White "La Fleur, Juninho"]
[Black "Ellul, Nicole"]
[Result "1-0"]
[TimeControl "45min+10sec"]
[WhiteElo "1328"]
[BlackElo "1251"]

1. e4 {[%clk 00:45:16]} {[%emt 00:00:04]} g6 {[%clk 00:45:19]} {[%emt
00:00:02]} 2. d4 {[%clk 00:45:24]} {[%emt 00:00:02]} Bg7 {[%clk 00:45:26]}
{[%emt 00:00:02]} 3. Be3 {[%clk 00:45:26]} {[%emt 00:00:09]} d6 {[%clk
00:45:33]} {[%emt 00:00:03]} 4. Nc3 {[%clk 00:45:07]} {[%emt 00:00:29]} Nf6
{[%clk 00:45:23]} {[%emt 00:00:20]} 5. f3 {[%clk 00:45:08]} {[%emt 00:00:09]}
Nbd7 {[%clk 00:45:06]} {[%emt 00:00:26]} 6. Qd2 {[%clk 00:45:13]} {[%emt
00:00:06]} O-O {[%clk 00:44:53]} {[%emt 00:00:23]} 7. g4 {[%clk 00:45:09]}
{[%emt 00:00:14]} e5 {[%clk 00:43:49]} {[%emt 00:01:13]} 8. d5 {[%clk
00:44:27]} {[%emt 00:00:52]} Qe7 {[%clk 00:37:55]} {[%emt 00:06:04]} 9. h4
{[%clk 00:44:21]} {[%emt 00:00:16]} h5 {[%clk 00:29:20]} {[%emt 00:08:45]} 10.
Bg5 {[%clk 00:43:38]} {[%emt 00:00:53]} Qe8 {[%clk 00:27:18]} {[%emt 00:02:10]}
11. Qg2 {[%clk 00:35:19]} {[%emt 00:08:27]} c6 {[%clk 00:20:06]} {[%emt
00:07:26]} 12. Bc4 {[%clk 00:33:02]} {[%emt 00:02:23]} Qd8 {[%clk 00:15:45]}
{[%emt 00:04:35]} 13. gxh5 {[%clk 00:31:46]} {[%emt 00:01:27]} Qb6 {[%clk
00:13:39]} {[%emt 00:02:15]} 14. Bb3 {[%clk 00:30:18]} {[%emt 00:01:37]} Nxh5
{[%clk 00:13:11]} {[%emt 00:00:40]} 15. dxc6 {[%clk 00:29:56]} {[%emt
00:00:32]} bxc6 {[%clk 00:12:53]} {[%emt 00:00:28]} 16. Nge2 {[%clk 00:29:10]}
{[%emt 00:00:55]} Ba6 {[%clk 00:12:14]} {[%emt 00:00:50]} 17. Be7 {[%clk
00:25:24]} {[%emt 00:03:57]} Rfe8 {[%clk 00:10:51]} {[%emt 00:01:32]} 18. Bxd6
{[%clk 00:21:30]} {[%emt 00:04:03]} Bxe2 {[%clk 00:10:15]} {[%emt 00:00:46]} 19.
Nxe2 {[%clk 00:21:10]} {[%emt 00:00:29]} Nf4 {[%clk 00:09:40]} {[%emt
00:00:46]} 20. Nxf4 {[%clk 00:20:37]} {[%emt 00:00:42]} Qe3+ {[%clk 00:09:45]}
{[%emt 00:00:05]} 21. Ne2 {[%clk 00:20:17]} {[%emt 00:00:29]} Rad8 {[%clk
00:08:44]} {[%emt 00:01:10]} 22. Qxg6 {[%clk 00:20:05]} {[%emt 00:00:23]} Nf8
{[%clk 00:07:34]} {[%emt 00:01:22]} 23. Qxf7+ {[%clk 00:19:57]} {[%emt
00:00:18]} Kh8 {[%clk 00:07:29]} {[%emt 00:00:15]} 24. Qg8# {[%clk 00:20:04]}
{[%emt 00:00:02]} 1-0

[Event "FIDE U16 Olympiad_boards_81-124"]
[Site "Eindhoven, Netherlands"]
[Date "2023.08.14"]
[Round "3.44"]
[White "Ramnarine Singh, Aradhana"]
[Black "Gauci, Andre"]
[Result "1-0"]
[TimeControl "45min+10sec"]
[WhiteElo "1210"]
[BlackElo "1277"]

1. e4 {[%clk 00:45:18]} c5 {[%clk 00:45:17]} {[%emt 00:00:03]} 2. Nf3 {[%clk
00:45:26]} {[%emt 00:00:02]} d6 {[%clk 00:45:18]} {[%emt 00:00:08]} 3. d4
{[%clk 00:45:34]} {[%emt 00:00:02]} cxd4 {[%clk 00:45:25]} {[%emt 00:00:03]} 4.
Nxd4 {[%clk 00:45:41]} {[%emt 00:00:03]} Nf6 {[%clk 00:45:30]} {[%emt
00:00:06]} 5. Nc3 {[%clk 00:45:49]} {[%emt 00:00:02]} g6 {[%clk 00:45:32]}
{[%emt 00:00:08]} 6. Be2 {[%clk 00:45:38]} {[%emt 00:00:21]} Bg7 {[%clk
00:45:29]} {[%emt 00:00:12]} 7. O-O {[%clk 00:45:18]} {[%emt 00:00:30]} O-O
{[%clk 00:45:23]} {[%emt 00:00:16]} 8. h3 {[%clk 00:45:02]} {[%emt 00:00:27]}
Nc6 {[%clk 00:45:02]} {[%emt 00:00:30]} 9. Be3 {[%clk 00:44:55]} {[%emt
00:00:16]} d5 {[%clk 00:43:58]} {[%emt 00:01:14]} 10. exd5 {[%clk 00:42:17]}
{[%emt 00:02:48]} Nxd5 {[%clk 00:44:01]} {[%emt 00:00:07]} 11. Nxc6 {[%clk
00:39:14]} {[%emt 00:03:13]} bxc6 {[%clk 00:40:38]} {[%emt 00:03:33]} 12. Bd4
{[%clk 00:32:25]} {[%emt 00:06:59]} Nf6 {[%clk 00:34:33]} {[%emt 00:06:15]} 13.
Bf3 {[%clk 00:31:17]} {[%emt 00:01:18]} Bd7 {[%clk 00:31:42]} {[%emt 00:03:01]}
14. Re1 {[%clk 00:30:35]} {[%emt 00:00:52]} Re8 {[%clk 00:30:38]} {[%emt
00:01:15]} 15. Qd3 {[%clk 00:28:01]} {[%emt 00:02:43]} Qc7 {[%clk 00:28:37]}
{[%emt 00:02:11]} 16. Be5 {[%clk 00:25:05]} {[%emt 00:03:05]} Qb7 {[%clk
00:27:01]} {[%emt 00:01:47]} 17. Ne4 {[%clk 00:20:51]} {[%emt 00:04:23]} Nxe4
{[%clk 00:18:18]} {[%emt 00:08:54]} 18. Qxe4 {[%clk 00:18:56]} {[%emt
00:02:05]} f6 {[%clk 00:15:53]} {[%emt 00:02:35]} 19. Bc3 {[%clk 00:18:15]}
{[%emt 00:00:50]} f5 {[%clk 00:14:58]} {[%emt 00:01:06]} 20. Qc4+ {[%clk
00:17:16]} {[%emt 00:01:07]} e6 {[%clk 00:13:02]} {[%emt 00:02:07]} 21. Bxg7
{[%clk 00:16:26]} {[%emt 00:01:01]} Kxg7 {[%emt 00:00:06]} 22. Qd4+ {[%clk
00:15:45]} {[%emt 00:00:49]} Kf7 {[%clk 00:11:57]} {[%emt 00:01:21]} 23. Rad1
{[%clk 00:15:30]} {[%emt 00:00:25]} Rad8 {[%clk 00:11:44]} {[%emt 00:00:23]} 24.
Qe5 {[%clk 00:14:28]} {[%emt 00:01:11]} Qb8 {[%clk 00:08:54]} {[%emt 00:02:56]}
25. Qxb8 {[%clk 00:14:17]} {[%emt 00:00:25]} Rxb8 {[%clk 00:08:57]} {[%emt
00:00:07]} 26. Rxd7+ {[%clk 00:14:22]} {[%emt 00:00:05]} Kf6 {[%clk 00:09:02]}
{[%emt 00:00:05]} 27. b3 {[%clk 00:14:07]} {[%emt 00:00:25]} Re7 {[%clk
00:07:13]} {[%emt 00:01:59]} 28. Rxe7 {[%clk 00:13:36]} {[%emt 00:00:41]} Kxe7
{[%clk 00:07:19]} {[%emt 00:00:03]} 29. Bxc6 {[%clk 00:13:26]} {[%emt
00:00:21]} Rc8 {[%clk 00:07:27]} {[%emt 00:00:03]} 30. Bd5 {[%clk 00:13:11]}
{[%emt 00:00:25]} Rxc2 {[%clk 00:06:22]} {[%emt 00:01:15]} 31. Rxe6+ {[%clk
00:13:13]} {[%emt 00:00:08]} Kf8 {[%clk 00:06:08]} {[%emt 00:00:23]} 32. a4
{[%clk 00:13:06]} {[%emt 00:00:17]} a5 {[%clk 00:05:21]} {[%emt 00:00:57]} 33.
Bc4 {[%clk 00:13:06]} {[%emt 00:00:11]} Kg7 {[%clk 00:04:06]} {[%emt 00:01:25]}
34. Ra6 {[%clk 00:12:41]} {[%emt 00:00:35]} h5 {[%clk 00:03:38]} {[%emt
00:00:38]} 35. Rxa5 {[%clk 00:12:15]} {[%emt 00:00:35]} Kf6 {[%clk 00:03:36]}
{[%emt 00:00:12]} 36. h4 {[%clk 00:11:54]} {[%emt 00:00:32]} g5 {[%clk
00:03:33]} {[%emt 00:00:12]} 37. hxg5+ {[%clk 00:11:31]} {[%emt 00:00:34]} Kxg5
{[%clk 00:03:41]} 38. g3 {[%clk 00:11:30]} {[%emt 00:00:12]} Kg4 {[%clk
00:03:33]} {[%emt 00:00:17]} 39. Kg2 {[%clk 00:11:18]} {[%emt 00:00:24]} f4
{[%clk 00:03:29]} {[%emt 00:00:14]} 40. gxf4 {[%clk 00:11:17]} {[%emt
00:00:11]} h4 {[%clk 00:03:29]} {[%emt 00:00:10]} 41. Be6+ {[%emt 00:00:22]}
Kxf4 {[%clk 00:03:33]} {[%emt 00:00:02]} 42. Rh5 {[%clk 00:10:03]} {[%emt
00:01:15]} h3+ {[%clk 00:03:07]} {[%emt 00:00:37]} 43. Rxh3 {[%clk 00:09:56]}
{[%emt 00:00:18]} Rc6 {[%clk 00:02:51]} {[%emt 00:00:26]} 44. Bc4 {[%clk
00:09:37]} {[%emt 00:00:28]} Rg6+ {[%clk 00:02:55]} {[%emt 00:00:06]} 45. Rg3
{[%clk 00:09:31]} {[%emt 00:00:15]} Rd6 {[%clk 00:02:16]} {[%emt 00:00:49]} 46.
a5 {[%clk 00:09:03]} {[%emt 00:00:38]} Rc6 {[%clk 00:01:51]} {[%emt 00:00:36]}
47. a6 {[%clk 00:08:31]} {[%emt 00:00:42]} Rc7 {[%clk 00:01:52]} {[%emt
00:00:05]} 48. Rg6 {[%clk 00:07:53]} {[%emt 00:00:50]} Ra7 {[%clk 00:01:38]}
{[%emt 00:00:23]} 49. Bd5 {[%clk 00:07:31]} {[%emt 00:00:33]} Ke5 {[%clk
00:01:33]} {[%emt 00:00:13]} 50. Bb7 {[%clk 00:07:33]} {[%emt 00:00:10]} Kf5
{[%clk 00:01:36]} {[%emt 00:00:07]} 51. Rc6 {[%clk 00:07:05]} {[%emt 00:00:37]}
Ke5 {[%clk 00:01:38]} {[%emt 00:00:09]} 52. b4 {[%clk 00:07:13]} {[%emt
00:00:02]} Kd5 {[%clk 00:01:43]} {[%emt 00:00:05]} 53. b5 {[%clk 00:07:19]}
{[%emt 00:00:04]} Kd4 {[%clk 00:01:12]} {[%emt 00:01:37]} 54. b6 {[%clk
00:08:23]} {[%emt 00:00:07]} Rxb7 {[%clk 00:01:00]} {[%emt 00:00:22]} 55. axb7
{[%clk 00:08:31]} {[%emt 00:00:02]} Kd5 {[%clk 00:01:08]} {[%emt 00:00:03]} 56.
b8=Q {[%clk 00:08:34]} {[%emt 00:00:06]} Kxc6 {[%clk 00:01:16]} {[%emt
00:00:02]} 57. Qc7+ {[%clk 00:08:39]} {[%emt 00:00:05]} Kb5 {[%clk 00:01:24]}
{[%emt 00:00:02]} 58. b7 {[%clk 00:08:45]} {[%emt 00:00:04]} Ka6 {[%clk
00:01:26]} {[%emt 00:00:08]} 59. Qc4+ {[%clk 00:08:11]} {[%emt 00:00:43]} Kxb7
{[%clk 00:01:32]} {[%emt 00:00:04]} 60. f4 {[%clk 00:08:17]} {[%emt 00:00:04]}
Kb8 {[%clk 00:01:33]} {[%emt 00:00:08]} 61. f5 {[%clk 00:08:26]} {[%emt
00:00:02]} Ka8 {[%clk 00:01:37]} {[%emt 00:00:05]} 62. f6 {[%clk 00:08:34]}
{[%emt 00:00:03]} Ka7 {[%clk 00:01:46]} {[%emt 00:00:02]} 63. f7 {[%clk
00:08:42]} {[%emt 00:00:02]} Kb7 {[%clk 00:01:38]} {[%emt 00:00:17]} 64. f8=R
{[%clk 00:08:43]} {[%emt 00:00:10]} Ka7 {[%clk 00:01:32]} {[%emt 00:00:16]} 65.
Rf6 {[%clk 00:08:49]} {[%emt 00:00:04]} Kb8 {[%clk 00:01:20]} {[%emt 00:00:23]}
66. Rf7 {[%clk 00:08:45]} {[%emt 00:00:14]} Ka8 {[%clk 00:01:27]} {[%emt
00:00:03]} 67. Qc8# {[%clk 00:08:53]} {[%emt 00:00:02]} 1-0